bitfinex/quotes_ETHUSD_20250411
["timestamp","ask_amount","ask_price","bid_price","bid_amount"]
[1744415307204,7.14159,1567.5,1567.3,3.0]
[1744415308961,13.5213,1567.5,1567.3,3.0]
[1744415309405,7.14159,1567.5,1567.3,3.0]
[1744415312971,13.52143,1567.5,1567.3,3.0]
[1744415314478,7.14159,1567.5,1567.3,3.0]
[1744415315400,1.476159,1567.5,1567.1,6.38111]
[1744415315698,7.21139,1567.3,1567.2,3.0]
[1744415318892,0.831,1567.3,1567.2,3.0]
[1744415322649,13.58069,1567.4,1567.2,3.0]
[1744415322909,13.58069,1567.4,1567.1,8.07329471]
[1744415322910,6.38039,1567.3,1567.0,15.27988471]
[1744415323074,13.58062,1567.4,1567.1,8.07323471]
[1744415328521,6.38095,1567.2,1567.0,3.8248]
[1744415328682,12.76191,1567.2,1567.0,3.0]
[1744415328901,13.58401,1567.2,1567.0,3.0]
[1744415329936,6.38121,1567.1,1567.0,3.0]
[1744415331409,7.20305,1567.2,1566.7,8.89112471]
[1744415331410,0.8221,1567.2,1566.7,8.89112471]
[1744415331723,6.38212,1566.9,1566.6,15.27464471]
[1744415331925,6.38212,1566.9,1566.7,3.0]
[1744415332132,6.38255,1566.8,1566.6,1.69212471]
[1744415332312,6.38255,1566.8,1566.6,4.69212471]
[1744415332519,13.55116,1566.8,1566.5,15.02553471]
[1744415332725,7.16855,1566.8,1566.5,21.40906471]
[1744415333038,7.16855,1566.8,1566.5,23.03445459]
[1744415333201,7.16855,1566.8,1566.5,16.65092459]
[1744415333405,0.786,1566.8,1566.5,6.148]
[1744415333604,6.383,1566.7,1566.5,6.148]
[1744415333804,12.76618,1566.7,1566.4,8.07608471]
[1744415334435,6.38334,1566.6,1566.3,20.78200925]
[1744415334637,6.38334,1566.6,1566.3,23.53011018]
[1744415335236,12.76681,1566.6,1566.3,17.14574018]
[1744415335403,12.76773,1566.5,1566.3,5.51928454]
[1744415336422,7.17006,1566.4,1566.3,5.51928454]
[1744415337018,6.38502,1566.2,1565.9,18.85722454]
[1744415337353,6.38502,1566.2,1566.0,3.0]
[1744415337666,12.77009,1566.2,1565.9,12.47118454]
[1744415337817,12.77009,1566.2,1566.0,3.0]
[1744415339558,0.786,1566.4,1566.2,6.38483]
[1744415339745,7.17641,1566.7,1566.2,4.95518036]
[1744415339930,7.17641,1566.7,1566.4,12.7679]
[1744415340130,6.38301,1566.7,1566.5,0.7602]
[1744415341416,12.76602,1566.7,1566.5,0.7602]
[1744415341755,6.38301,1566.7,1566.5,0.7602]
[1744415342147,6.38339,1566.6,1566.4,0.8072]
[1744415343357,6.38339,1566.6,1566.3,12.7687]
[1744415343358,6.38365,1566.5,1566.3,3.0]
[1744415344360,12.76701,1566.6,1566.3,9.3844]
[1744415344668,12.76678,1566.6,1566.3,9.3844]
[1744415348468,6.38407,1566.4,1566.1,16.60268]
[1744415350969,6.38407,1566.4,1566.2,6.38487]
[1744415353569,6.38407,1566.4,1566.1,16.60268]
[1744415354165,12.7683,1566.4,1566.1,10.21744]
[1744415354465,6.3845,1566.3,1566.0,23.84507413]
[1744415354670,6.3845,1566.3,1566.0,17.45950413]
[1744415354671,12.76933,1566.3,1566.0,17.45950413]
[1744415354841,13.56083,1566.3,1566.0,16.66770413]
[1744415355176,13.56083,1566.3,1566.0,12.53657]
[1744415355662,13.56083,1566.3,1566.0,6.38557]
[1744415356464,2.147583,1566.3,1565.9,0.7918]
[1744415356678,6.38596,1566.0,1565.7,6.3868]
[1744415356961,6.38596,1566.0,1565.8,3.0]
[1744415358861,12.77179,1566.0,1565.8,3.0]
[1744415359073,6.38583,1566.0,1565.8,3.0]
[1744415360549,7.1769,1566.1,1565.8,9.38648]
[1744415360748,7.1769,1566.1,1565.8,15.77296]
[1744415361573,13.56236,1566.1,1565.8,9.38648]
[1744415361737,14.918596,1566.1,1565.8,9.38648]
[1744415364561,12.77167,1566.0,1565.8,3.0]
[1744415364761,6.3861,1565.9,1565.8,3.0]
[1744415365073,6.3861,1565.9,1565.7,3.0]
[1744415365242,12.77233,1565.9,1565.7,3.0]
[1744415365444,14.049563,1565.9,1565.6,11.31014413]
[1744415365634,6.3861,1565.9,1565.6,17.69734413]
[1744415365974,7.17712,1566.1,1565.8,7.15595]
[1744415366171,7.17712,1566.1,1565.8,13.54228]
[1744415366373,6.38562,1566.1,1565.8,13.54228]
[1744415367399,6.38562,1566.1,1565.9,6.38609]
[1744415367711,7.17957,1566.4,1566.1,6.38525]
[1744415368704,6.38447,1566.3,1566.1,6.38525]
[1744415380404,6.38447,1566.3,1566.0,13.54083]
[1744415383276,12.76921,1566.3,1566.0,7.15525]
[1744415384005,6.38447,1566.3,1566.0,13.54082]
[1744415384210,13.56395,1566.4,1566.1,6.38525]
[1744415385605,6.38459,1566.3,1566.0,7.15525]
[1744415385813,7.19683,1566.2,1565.9,9.38598]
[1744415386782,6.3853,1566.1,1565.9,3.0]
[1744415387807,12.77075,1566.1,1565.9,3.0]
[1744415390514,6.38569,1566.0,1565.9,3.0]
[1744415390689,6.38569,1566.0,1565.8,3.0]
[1744415393015,12.77152,1566.0,1565.8,3.0]
[1744415393176,13.59272,1566.0,1565.8,3.0]
[1744415393377,13.59272,1566.0,1565.7,6.38678]
[1744415393577,7.20689,1566.0,1565.7,12.77357]
[1744415393914,7.743595,1566.1,1565.8,7.20669]
[1744415393915,7.20655,1566.1,1565.8,7.20669]
[1744415394077,7.20655,1566.1,1565.8,13.59309]
[1744415394277,6.38498,1566.2,1565.9,6.38586]
[1744415394613,6.38498,1566.2,1565.9,12.7718]
[1744415395309,6.38498,1566.2,1565.9,14.46738833]
[1744415395489,12.76999,1566.2,1565.9,8.08144833]
[1744415396409,6.38532,1566.1,1565.8,15.28864833]
[1744415396589,6.38532,1566.1,1565.8,7.20666]
[1744415396788,7.20652,1566.1,1565.8,7.20666]
[1744415396988,6.38532,1566.1,1565.8,15.28864833]
[1744415397417,13.55531,1566.2,1565.9,12.77206]
[1744415397745,7.1703,1566.2,1565.9,12.77196]
[1744415398015,13.55534,1566.2,1565.9,6.38598]
[1744415400092,6.38529,1566.1,1565.9,6.38598]
[1744415401616,7.1703,1566.2,1565.9,6.38598]
[1744415401794,13.55551,1566.2,1565.9,6.38598]
[1744415402304,6.38533,1566.1,1565.8,17.72628687]
[1744415403221,13.55544,1566.2,1565.9,6.38609]
[1744415403383,13.55544,1566.2,1565.9,12.77209]
[1744415403584,13.55533,1566.2,1565.9,12.77209]
[1744415404434,13.55533,1566.2,1565.9,6.386]
[1744415405028,13.55535,1566.2,1565.9,6.38598]
[1744415409843,7.17031,1566.2,1565.9,12.77196]
[1744415412154,13.55534,1566.2,1565.9,6.38598]
[1744415412352,13.55534,1566.2,1565.9,12.77197]
[1744415413969,6.38379,1566.5,1566.2,6.38488]
[1744415414116,13.55785,1566.7,1566.4,6.38394]
[1744415414610,13.55785,1566.7,1566.3,12.83244496]
[1744415414833,13.55785,1566.7,1566.3,12.7686]
[1744415415051,1.355785,1566.6,1566.3,12.7686]
[1744415415235,7.17464,1566.7,1566.4,6.38394]
[1744415415419,4.26394084,1566.8,1566.6,6.38313]
[1744415415620,4.26394084,1566.8,1566.6,7.15043]
[1744415415827,4.26394084,1566.8,1566.7,6.38284]
[1744415416849,4.26394084,1566.8,1566.6,7.15043]
[1744415417055,4.26394084,1566.8,1566.5,13.53436]
[1744415417257,10.64640084,1566.8,1566.5,13.53436]
[1744415418358,6.38246,1566.8,1566.5,7.15083]
[1744415418523,6.38246,1566.8,1566.5,13.53438]
[1744415419453,8.352785,1566.8,1566.5,3.0]
[1744415419753,6.38284,1566.7,1566.4,13.53512]
[1744415420055,6.38246,1566.8,1566.5,6.38362]
[1744415420457,7.17314,1567.1,1566.7,6.38253]
[1744415420660,0.7917,1567.2,1566.9,6.38179]
[1744415420865,7.17254,1567.2,1566.9,6.38179]
[1744415421020,10.40694084,1567.4,1566.5,13.53439]
[1744415421021,6.38266,1566.8,1566.5,13.53439]
[1744415421221,6.38266,1566.8,1566.5,7.15083]
[1744415421523,12.76529,1566.8,1566.5,7.15083]
[1744415421748,6.38202,1566.9,1566.5,0.7673]
[1744415421916,6.38338,1566.6,1566.4,3.0]
[1744415422531,6.38293,1566.7,1566.4,9.38402]
[1744415422738,12.76607,1566.7,1566.4,9.38402]
[1744415425659,6.38293,1566.7,1566.4,9.38394]
[1744415425952,7.187,1566.8,1566.4,11.51327783]
[1744415425953,13.56958,1566.8,1566.4,11.51327783]
[1744415426158,13.56958,1566.8,1566.5,6.38358]
[1744415426457,13.56958,1566.8,1566.4,9.38394]
[1744415426458,12.76589,1566.7,1566.4,9.38394]
[1744415426667,6.38287,1566.7,1566.4,15.76789]
[1744415427169,6.38287,1566.7,1566.4,9.38394]
[1744415427738,6.38287,1566.7,1566.4,15.83171291]
[1744415428065,6.38287,1566.7,1566.4,11.45578398]
[1744415428364,6.38287,1566.7,1566.4,11.5196169]
[1744415428562,6.38287,1566.7,1566.4,17.9035569]
[1744415428761,6.38287,1566.7,1566.4,17.83972398]
[1744415429565,6.38287,1566.7,1566.4,11.45578398]
[1744415429730,6.38287,1566.7,1566.4,17.83971398]
[1744415430062,13.56965,1566.8,1566.5,6.38364]
[1744415430279,6.38212,1566.9,1566.6,6.38301]
[1744415430425,12.76437,1566.9,1566.6,6.38301]
[1744415430870,6.38212,1566.9,1566.6,12.76615]
[1744415431367,0.2411658,1566.8,1566.7,0.7827]
[1744415431763,6.38206,1566.9,1566.7,0.7827]
[1744415431970,0.23334656,1566.8,1566.7,0.7827]
[1744415432174,6.38206,1566.9,1566.7,2.137598]
[1744415432333,0.23326127,1566.8,1566.5,13.08853127]
[1744415432538,0.99276127,1566.8,1566.6,3.0]
[1744415432739,0.23310997,1566.7,1566.6,3.0]
[1744415433955,0.23310997,1566.7,1566.6,9.38325]
[1744415434167,6.38216,1566.9,1566.6,9.38325]
[1744415434503,0.23375582,1566.8,1566.6,11.69413366]
[1744415434774,0.23375582,1566.8,1566.6,11.63030613]
[1744415434940,6.38204,1566.9,1566.6,11.63030613]
[1744415435141,0.23360452,1566.7,1566.6,11.63030613]
[1744415435341,6.38204,1566.9,1566.6,18.07726937]
[1744415435579,0.23360452,1566.7,1566.6,15.76627]
[1744415435883,6.38204,1566.9,1566.6,3.0]
[1744415436044,0.2337839,1566.7,1566.6,3.0]
[1744415437769,6.6166239,1566.7,1566.5,3.7878]
[1744415438080,6.6166239,1566.7,1566.5,3.0]
[1744415438281,6.38325,1566.6,1566.5,3.0]
[1744415438745,6.6164537,1566.6,1566.5,3.0]
[1744415444105,6.6164537,1566.6,1566.4,3.0]
[1744415444412,6.38406,1566.4,1566.1,23.81444687]
[1744415444603,12.76842,1566.4,1566.1,19.81073156]
[1744415444899,0.23195312,1566.3,1566.2,3.0]
[1744415445270,6.61642312,1566.3,1566.1,13.42557156]
[1744415445480,13.00129312,1566.3,1566.1,12.65667156]
[1744415445705,13.00129312,1566.3,1566.1,10.27522687]
[1744415446915,13.00129312,1566.3,1566.1,6.142]
[1744415447813,13.00129312,1566.3,1566.0,7.15448]
[1744415448548,6.61642312,1566.3,1566.0,7.15448]
[1744415448819,0.23195312,1566.3,1566.1,6.38518]
[1744415449040,0.23195312,1566.3,1566.1,7.7455388]
[1744415449898,0.23195312,1566.3,1566.1,14.1307188]
[1744415450092,0.23195312,1566.3,1566.1,14.1307088]
[1744415450624,0.23195312,1566.3,1566.1,7.7455288]
[1744415450813,0.23195312,1566.3,1566.1,14.1306888]
[1744415451122,0.23195312,1566.3,1566.1,7.7455188]
[1744415451818,0.23195312,1566.3,1566.1,14.1306788]
[1744415453825,0.23195312,1566.3,1566.2,7.79794788]
[1744415454191,6.38378,1566.5,1566.2,14.18282788]
[1744415454392,0.23083711,1566.4,1566.2,6.38488]
[1744415454591,12.24849711,1566.5,1566.2,6.38488]
[1744415455128,0.21157226,1566.4,1566.2,6.38488]
[1744415455291,6.59565226,1566.4,1566.1,10.51844687]
[1744415455497,6.59565226,1566.4,1566.1,16.90366687]
[1744415455697,6.59565226,1566.4,1566.1,18.67092356]
[1744415457304,7.37235226,1566.4,1566.1,18.67092356]
[1744415459035,0.98827226,1566.4,1566.2,6.38483]
[1744415459830,7.37235226,1566.4,1566.1,18.67085356]
[1744415461520,0.98827226,1566.4,1566.2,6.38481]
[1744415462139,7.37233226,1566.4,1566.2,6.38481]
[1744415462830,7.37233226,1566.4,1566.1,18.67078356]
[1744415463045,7.37233226,1566.4,1566.2,1.86707836]
[1744415463253,0.21157226,1566.4,1566.2,8.25191836]
[1744415463454,0.7627,1566.6,1566.4,6.38403]
[1744415463728,0.21006894,1566.5,1566.4,6.38403]
[1744415463897,0.21006894,1566.5,1566.4,7.66088]
[1744415464393,6.38285,1566.7,1566.4,7.66088]
[1744415464596,0.21006894,1566.5,1566.4,6.38403]
[1744415464806,6.38285,1566.7,1566.4,6.38403]
[1744415465032,6.38285,1566.7,1566.4,12.76798]
[1744415465193,0.21022028,1566.6,1566.5,7.18255]
[1744415465537,0.7627,1566.8,1566.5,14.92284]
[1744415465538,7.14514,1566.8,1566.5,14.92284]
[1744415465741,0.2102487,1566.6,1566.5,22.05606687]
[1744415465896,13.28542,1567.0,1566.7,6.38268]
[1744415466095,0.19567453,1566.9,1566.7,6.38268]
[1744415466296,0.19567453,1566.9,1566.7,14.041985]
[1744415466822,0.19567453,1566.9,1566.8,6.38243]
[1744415467222,0.19567453,1566.9,1566.7,14.840885]
[1744415468056,0.19567453,1566.9,1566.7,8.458165]
[1744415468199,0.19567453,1566.9,1566.8,0.06382257]
[1744415468400,13.52497,1567.2,1566.8,7.71177401]
[1744415468607,6.57918109,1567.1,1566.8,7.71177401]
[1744415468806,6.57918109,1567.1,1566.8,7.71167401]
[1744415469145,6.57918109,1567.1,1566.8,14.09398401]
[1744415469303,6.57918109,1567.1,1566.8,7.64783144]
[1744415469640,0.19794109,1567.1,1566.8,1.26552144]
[1744415469840,6.38173,1567.0,1566.8,1.26552144]
[1744415470243,0.19763864,1566.9,1566.8,1.32933853]
[1744415470447,0.19763864,1566.9,1566.8,7.71176853]
[1744415470633,6.38122,1567.1,1566.8,14.09419853]
[1744415470833,0.19806818,1566.9,1566.8,14.03038144]
[1744415471034,7.1437,1567.2,1566.8,1.26552144]
[1744415471238,0.19806818,1566.9,1566.8,11.19795144]
[1744415471409,6.38093,1567.2,1566.9,11.06484687]
[1744415471743,6.38175,1567.0,1566.8,1.26552144]
[1744415471947,6.38202,1566.9,1566.7,4.276585]
[1744415472243,0.18464289,1566.9,1566.8,10.75823]
[1744415472644,7.17526,1567.4,1567.1,6.38103]
[1744415472645,13.55541,1567.4,1567.1,6.38103]
[1744415472845,15.517951,1567.4,1567.1,6.38103]
[1744415473077,0.17054758,1567.3,1567.1,6.38103]
[1744415473277,7.17524,1567.4,1567.1,12.82593408]
[1744415473436,0.17073224,1567.3,1567.2,6.38076]
[1744415473641,7.17437,1567.6,1567.3,6.38024]
[1744415473871,0.17158849,1567.5,1567.3,12.76048]
[1744415474071,0.17158849,1567.5,1567.3,13.86068659]
[1744415474839,0.17158849,1567.5,1567.4,6.37999]
[1744415475153,0.17158849,1567.5,1567.3,13.86069659]
[1744415476079,0.17158849,1567.5,1567.4,6.37999]
[1744415476241,19.69305,1567.7,1567.4,6.37999]
[1744415476435,0.16131549,1567.6,1567.4,6.37999]
[1744415476872,6.54049549,1567.6,1567.3,13.86070659]
[1744415477078,6.54049549,1567.6,1567.4,0.69784099]
[1744415478256,0.16131549,1567.6,1567.4,13.45760099]
[1744415479483,0.16131549,1567.6,1567.4,7.07772099]
[1744415479980,6.54062549,1567.6,1567.4,0.69784099]
[1744415481851,6.54062549,1567.6,1567.3,9.38037]
[1744415481852,12.92019549,1567.6,1567.3,9.38037]
[1744415482170,6.54062549,1567.6,1567.3,9.38037]
[1744415482366,12.91994549,1567.6,1567.3,9.44416603]
[1744415482679,12.91994549,1567.6,1567.3,9.38037]
[1744415483182,12.91994549,1567.6,1567.3,9.44416604]
[1744415483380,6.54062549,1567.6,1567.3,11.1561807]
[1744415483556,6.54062549,1567.6,1567.3,17.5364507]
[1744415483885,6.54062549,1567.6,1567.3,17.47265466]
[1744415484344,12.92002549,1567.6,1567.3,11.09228466]
[1744415484545,6.54062549,1567.6,1567.3,11.09228466]
[1744415484783,12.92006549,1567.6,1567.3,11.1560807]
[1744415485185,12.91992549,1567.6,1567.3,11.1560807]
[1744415485347,6.54061549,1567.6,1567.3,11.1560807]
[1744415485553,6.54061549,1567.6,1567.3,17.5363507]
[1744415485752,6.54061549,1567.6,1567.3,17.47255466]
[1744415486285,12.92007549,1567.6,1567.3,11.09228466]
[1744415486496,6.54061549,1567.6,1567.3,11.15608071]
[1744415486693,6.54061549,1567.6,1567.3,17.53635071]
[1744415486989,0.16131549,1567.6,1567.5,6.37958]
[1744415487192,0.16131549,1567.6,1567.4,12.7599]
[1744415487380,0.16131549,1567.6,1567.4,14.50709147]
[1744415487787,0.16131549,1567.6,1567.5,6.37958]
[1744415488395,7.5526188,1567.9,1567.6,6.37904]
[1744415488999,7.5526188,1567.9,1567.5,15.7589]
[1744415489457,6.37838,1567.8,1567.5,15.7589]
[1744415489657,6.37838,1567.8,1567.5,17.58733915]
[1744415492091,7.5526188,1567.9,1567.6,6.37916]
[1744415492391,7.5526188,1567.9,1567.6,12.75822]
[1744415492597,7.5526188,1567.9,1567.6,12.75812]
[1744415493973,7.5526188,1567.9,1567.6,6.37906]
[1744415494193,13.9309588,1567.9,1567.6,6.37906]
[1744415494389,6.37836,1567.8,1567.5,11.27163708]
[1744415494704,0.16780395,1567.7,1567.6,1.12716371]
[1744415496294,6.3793,1567.6,1567.4,3.7783]
[1744415496469,0.17033094,1567.5,1567.4,3.7783]
[1744415496672,0.17033094,1567.5,1567.4,10.15829]
[1744415496904,0.17033094,1567.5,1567.4,10.22208206]
[1744415497567,7.15751,1567.7,1567.4,16.60195206]
[1744415497768,0.17033094,1567.5,1567.4,16.53816]
[1744415498005,13.53641,1567.7,1567.4,11.811986]
[1744415498211,0.17033094,1567.5,1567.4,16.55912487]
[1744415498408,13.9309688,1567.9,1567.6,6.37917]
[1744415498774,0.17078425,1567.8,1567.6,6.37917]
[1744415499222,13.9309688,1567.9,1567.6,6.37917]
[1744415499722,0.17037328,1567.8,1567.7,6.37864]
[1744415499883,0.3959788,1567.9,1567.7,6.37864]
[1744415500086,0.17037328,1567.8,1567.7,6.37864]
[1744415500286,0.3959788,1567.9,1567.8,6.37836]
[1744415500493,0.56650315,1567.9,1567.8,6.37836]
[1744415501411,0.56650315,1567.9,1567.8,14.90366362]
[1744415501600,0.56650315,1567.9,1567.8,14.83988687]
[1744415501914,0.56797881,1567.9,1567.8,14.83988687]
[1744415502212,0.56797881,1567.9,1567.8,17.73495356]
[1744415503026,0.3959788,1567.9,1567.8,17.73495356]
[1744415503205,0.56939257,1567.9,1567.8,17.73495356]
[1744415504738,0.56939257,1567.9,1567.8,18.22210689]
[1744415505436,0.56939257,1567.9,1567.8,17.18495356]
[1744415505641,0.56939257,1567.9,1567.8,16.40665356]
[1744415505845,0.56939257,1567.9,1567.8,17.73725356]
[1744415507710,0.56939257,1567.9,1567.8,18.21312222]
[1744415511467,0.56939257,1567.9,1567.8,17.18725356]
[1744415511631,0.56939257,1567.9,1567.8,16.88453051]
[1744415512165,0.56939257,1567.9,1567.8,16.40665356]
[1744415517678,0.56939257,1567.9,1567.8,10.02829356]
[1744415517878,1.1664788,1567.9,1567.8,5.89506669]
[1744415518061,1.1664788,1567.9,1567.7,3.0]
[1744415518062,6.37838,1567.8,1567.7,3.0]
[1744415518244,6.55317979,1567.8,1567.7,3.0]
[1744415518743,0.17479979,1567.8,1567.7,3.0]
[1744415518944,13.9227788,1567.9,1567.7,3.0]
[1744415519251,0.17473832,1567.8,1567.7,3.0]
[1744415519451,7.5444288,1567.9,1567.7,3.0]
[1744415519658,0.17473832,1567.8,1567.7,3.0]
[1744415519874,7.5444288,1567.9,1567.7,3.0]
[1744415519875,13.9225088,1567.9,1567.7,3.0]
[1744415520079,0.17473832,1567.8,1567.7,3.0]
[1744415520285,7.5444288,1567.9,1567.7,3.0]
[1744415520588,0.17473832,1567.8,1567.7,3.0]
[1744415520886,7.5444288,1567.9,1567.7,3.0]
[1744415521182,0.17473832,1567.8,1567.7,9.37871]
[1744415521540,1.1664788,1567.9,1567.7,15.75742]
[1744415521739,0.17473832,1567.8,1567.7,9.37871]
[1744415521981,1.1664788,1567.9,1567.7,9.37871]
[1744415522186,0.17473832,1567.8,1567.7,9.37871]
[1744415522485,1.1664788,1567.9,1567.7,9.37871]
[1744415522684,0.17473832,1567.8,1567.7,9.37871]
[1744415522887,1.1664788,1567.9,1567.7,9.37871]
[1744415523087,0.17283266,1567.8,1567.7,9.37871]
[1744415523288,1.1664788,1567.9,1567.7,9.37871]
[1744415523459,0.17283266,1567.8,1567.7,9.37871]
[1744415523648,1.1664788,1567.9,1567.7,15.75736]
[1744415523843,0.17283266,1567.8,1567.7,15.70736]
[1744415524084,0.3959788,1567.9,1567.7,15.70736]
[1744415524295,0.17283266,1567.8,1567.7,15.70736]
[1744415524495,0.3959788,1567.9,1567.7,15.70736]
[1744415524706,0.17283266,1567.8,1567.7,15.70736]
[1744415524850,0.3959788,1567.9,1567.7,15.70736]
[1744415525149,0.17283266,1567.8,1567.7,15.70736]
[1744415525349,0.3959788,1567.9,1567.7,15.70736]
[1744415525590,0.17283266,1567.8,1567.7,15.70736]
[1744415525879,0.3959788,1567.9,1567.7,15.70736]
[1744415526088,0.17283266,1567.8,1567.7,9.32865]
[1744415526254,0.3959788,1567.9,1567.7,15.7073]
[1744415526588,0.17283266,1567.8,1567.7,15.7073]
[1744415526898,13.1524888,1567.9,1567.7,2.95]
[1744415527188,0.17283266,1567.8,1567.7,2.95]
[1744415527993,6.37877,1567.7,1567.4,6.37983]
[1744415528208,0.7696,1567.6,1567.5,6.37958]
[1744415528365,0.17253047,1567.6,1567.5,12.75916]
[1744415528565,7.14825,1567.8,1567.5,12.75916]
[1744415528766,0.17145201,1567.7,1567.5,12.75916]
[1744415529179,0.17145201,1567.7,1567.6,6.37917]
[1744415529399,7.5436088,1567.9,1567.7,6.37876]
[1744415529610,1.1655788,1567.9,1567.7,6.37876]
[1744415529900,7.5435988,1567.9,1567.6,10.51239687]
[1744415530075,7.5435988,1567.9,1567.6,16.89144687]
[1744415531101,13.9217088,1567.9,1567.6,10.51227687]
[1744415531818,15.31387968,1567.9,1567.6,10.51227687]
[1744415532901,6.3784,1567.8,1567.6,10.51227687]
[1744415533708,6.3784,1567.8,1567.6,4.13322687]
[1744415535324,8.93576968,1567.9,1567.6,10.51239687]
[1744415535481,8.93576968,1567.9,1567.6,16.89142687]
[1744415535813,8.93576968,1567.9,1567.6,10.51225687]
[1744415536135,8.93576968,1567.9,1567.6,16.89128687]
[1744415537033,8.93576968,1567.9,1567.6,10.51225687]
[1744415537414,8.93576968,1567.9,1567.6,16.89131687]
[1744415537639,7.5435988,1567.9,1567.6,16.89131687]
[1744415538924,0.3959788,1567.9,1567.7,6.37863]
[1744415539129,0.3959788,1567.9,1567.8,6.37836]
[1744415539839,0.5669336,1567.9,1567.8,6.37836]
[1744415540405,0.5669336,1567.9,1567.7,12.75727]
[1744415540648,0.5669336,1567.9,1567.7,8.14583969]
[1744415540826,0.5669336,1567.9,1567.7,6.37863]
[1744415541414,0.5669336,1567.9,1567.7,12.75724]
[1744415541619,0.5669336,1567.9,1567.8,6.37836]
[1744415544630,0.5669336,1567.9,1567.7,12.8210022]
[1744415545239,0.5669336,1567.9,1567.7,12.75722]
[1744415545444,0.5669336,1567.9,1567.7,6.37861]
[1744415546120,0.7835,1567.8,1567.7,3.0]
[1744415546315,0.95430373,1567.8,1567.7,3.0]
[1744415547941,0.17080373,1567.8,1567.7,9.37877]
[1744415548152,0.3959788,1567.9,1567.7,11.36787169]
[1744415548457,0.157212,1567.8,1567.7,9.37877]
[1744415548761,0.3959788,1567.9,1567.7,9.37877]
[1744415549055,0.157212,1567.8,1567.7,9.37877]
[1744415549357,0.3959788,1567.9,1567.7,15.75742]
[1744415549526,0.3959788,1567.9,1567.8,6.37836]
[1744415551245,0.3959788,1567.9,1567.8,16.4631666]
[1744415551452,0.3959788,1567.9,1567.8,16.39938787]
[1744415552348,0.3959788,1567.9,1567.8,20.53261474]
[1744415552557,0.3959788,1567.9,1567.8,16.39938787]
[1744415553441,0.3959788,1567.9,1567.8,16.87040651]
[1744415572505,0.3959788,1567.9,1567.8,22.99840651]
[1744415575327,0.3959788,1567.9,1567.8,20.55611717]
[1744415578350,0.3959788,1567.9,1567.8,19.79401717]
[1744415581555,0.3959788,1567.9,1567.8,6.37836]
[1744415581853,0.3959788,1567.9,1567.8,8.06929753]
[1744415582050,0.3959788,1567.9,1567.8,6.37836]
[1744415582220,0.54468814,1567.9,1567.8,9.37836]
[1744415582659,1.32208814,1567.9,1567.8,3.0]
[1744415582958,1.1733788,1567.9,1567.8,3.0]
[1744415583165,2.71395124,1567.9,1567.8,3.0]
[1744415583513,2.71395124,1567.9,1567.6,6.37911]
[1744415583514,8.31450124,1567.9,1567.6,6.37911]
[1744415583862,0.7774,1567.8,1567.5,14.44994753]
[1744415584046,0.7774,1567.7,1567.6,3.0]
[1744415584359,0.92402484,1567.7,1567.6,3.0]
[1744415586922,0.92402484,1567.7,1567.6,9.37917]
[1744415587147,0.14662484,1567.7,1567.6,13.56769257]
[1744415587322,1.2144788,1567.9,1567.8,6.37836]
[1744415587526,1.35999179,1567.9,1567.8,6.37836]
[1744415590258,0.8185,1567.8,1567.6,9.37907]
[1744415590557,0.8185,1567.8,1567.6,9.3791]
[1744415590744,0.14594863,1567.7,1567.6,15.75815]
[1744415590951,0.14594863,1567.7,1567.6,9.37905]
[1744415596681,0.14594863,1567.7,1567.6,13.50378393]
[1744415600092,0.14594863,1567.7,1567.6,3.0]
[1744415600388,0.96444863,1567.7,1567.6,3.0]
[1744415601187,7.19786,1567.6,1567.3,12.50732]
[1744415601401,7.1982,1567.5,1567.3,6.127]
[1744415601596,7.33991173,1567.5,1567.3,6.127]
[1744415602277,7.33991173,1567.5,1567.3,3.0]
[1744415602578,0.7692,1567.4,1567.1,6.38112]
[1744415602876,0.90977652,1567.4,1567.1,6.38112]
[1744415603501,7.28976652,1567.4,1567.1,6.38112]
[1744415603706,7.14971,1567.3,1567.0,4.12473393]
[1744415604000,0.7692,1567.1,1567.0,4.12473393]
[1744415604206,0.7692,1567.1,1566.9,12.50888]
[1744415604507,0.90876936,1567.1,1566.9,12.50888]
[1744415605492,0.13956936,1567.1,1567.0,14.93076912]
[1744415605681,0.13956936,1567.1,1567.0,14.86695393]
[1744415605883,0.7692,1567.4,1567.2,3.0]
[1744415606170,0.13507353,1567.3,1567.2,13.56909057]
[1744415606498,0.7692,1567.4,1567.2,19.88595393]
[1744415606800,0.13605797,1567.3,1567.2,19.88595393]
[1744415606965,0.7692,1567.4,1567.2,19.88595393]
[1744415607167,0.13605797,1567.3,1567.2,19.88595393]
[1744415607367,0.7692,1567.4,1567.2,13.50528393]
[1744415607569,0.13605797,1567.3,1567.2,7.12473393]
[1744415607795,0.7692,1567.4,1567.2,7.12473393]
[1744415607975,0.13655012,1567.3,1567.2,7.12473393]
[1744415608177,0.13655012,1567.3,1567.2,13.50553393]
[1744415608389,0.7692,1567.4,1567.2,13.50553393]
[1744415608612,0.12497078,1567.3,1567.2,13.50553393]
[1744415608779,0.7692,1567.4,1567.2,13.50553393]
[1744415608982,0.12614186,1567.3,1567.2,13.50553393]
[1744415609179,0.7692,1567.4,1567.2,13.50553393]
[1744415609513,0.12614186,1567.3,1567.2,13.50553393]
[1744415609813,0.7692,1567.4,1567.2,13.50553393]
[1744415610017,0.12614186,1567.3,1567.2,13.50553393]
[1744415610317,0.8176,1567.6,1567.3,6.3801]
[1744415610619,0.8176,1567.6,1567.4,6.37983]
[1744415614836,0.12644417,1567.5,1567.4,6.37983]
[1744415615037,0.12644417,1567.5,1567.3,12.76036]
[1744415618851,0.12644417,1567.5,1567.4,6.37999]
[1744415619326,6.37887,1567.7,1567.4,6.37999]
[1744415619526,0.12795024,1567.6,1567.4,6.37999]
[1744415620347,0.12795024,1567.6,1567.4,12.75998]
[1744415620649,0.12795024,1567.6,1567.4,6.37999]
[1744415624647,14.110914,1567.7,1567.4,6.37999]
[1744415627076,0.8168,1567.6,1567.2,19.63135393]
[1744415627374,6.37971,1567.5,1567.2,19.63135393]
[1744415629172,6.37971,1567.5,1567.2,26.01200393]